lending/lending_fUSD_20240411
["ID","MTS","AMOUNT","RATE_DAILY","PERIOD"]
[322144911,1712848282452,-500.0,0.00033972,7]
[322144912,1712848282461,-500.0,0.00033972,7]
[322144913,1712848282471,-500.0,0.00033972,7]
[322144914,1712848282480,-500.0,0.00033972,7]
[322144915,1712848282490,-500.0,0.00033972,7]
[322144916,1712848282499,-500.0,0.00033972,3]
[322144917,1712848282509,-567.34,0.00033972,7]
[322144918,1712848282518,-500.0,0.00033972,7]
[322144919,1712848282527,-610.54,0.00033972,7]
[322144920,1712848282538,-500.0,0.00033972,7]
[322144921,1712848282548,-500.0,0.00033972,7]
[322144922,1712848282559,-532.94,0.00033972,7]
[322144923,1712848282568,-522.35261249,0.00033972,7]
[322144924,1712848282578,-228.07496344,0.00033972,7]
[322144925,1712848282588,-500.0,0.00033972,7]
[322144926,1712848282599,-500.0,0.00033972,7]
[322144927,1712848282608,-500.0,0.00033972,7]
[322144928,1712848282618,-500.0,0.00033972,7]
[322144929,1712848282628,-500.0,0.00033972,7]
[322144930,1712848282638,-500.0,0.00033972,7]
[322144931,1712848282647,-500.0,0.00033972,2]
[322144932,1712848282658,-500.0,0.00033972,7]
[322144933,1712848282667,-500.0,0.00033972,7]
[322144934,1712848282677,-500.0,0.00033972,7]
[322144935,1712848282686,-1142.55,0.00033972,7]
[322144936,1712848282696,-500.0,0.00033972,7]
[322144937,1712848282706,-500.0,0.00033972,7]
[322144938,1712848282716,-500.0,0.00033972,7]
[322144939,1712848282726,-500.0,0.00033972,7]
[322144940,1712848282735,-500.0,0.00033972,7]
[322144941,1712848282744,-500.0,0.00033972,7]
[322144942,1712848282754,-500.0,0.00033972,7]
[322144943,1712848282764,-500.0,0.00033972,7]
[322144944,1712848282773,-500.0,0.00033972,7]
[322144945,1712848282782,-574.98,0.00033972,7]
[322144946,1712848282792,-500.0,0.00033972,7]
[322144947,1712848282801,-500.0,0.00033972,7]
[322144948,1712848282810,-500.0,0.00033972,7]
[322144949,1712848282821,-1197.51,0.00033972,7]
[322144950,1712848282832,-500.0,0.00033972,7]
[322144951,1712848282842,-500.0,0.00033972,7]
[322144952,1712848282853,-518.56926471,0.00033972,7]
[322144953,1712848282862,-500.0,0.00033972,7]
[322144954,1712848282871,-500.0,0.00033972,7]
[322144955,1712848282880,-500.0,0.00033972,7]
[322144956,1712848282890,-540.06178006,0.00033972,7]
[322144957,1712848282899,-500.0,0.00033972,7]
[322144958,1712848282909,-500.0,0.00033972,7]
[322144959,1712848282919,-561.72976611,0.00033972,7]
[322144960,1712848282928,-500.0,0.00033972,7]
[322144961,1712848282938,-500.0,0.00033972,7]
[322144962,1712848282947,-500.0,0.00033972,7]
[322144963,1712848282957,-500.0,0.00033972,7]
[322144964,1712848282967,-500.0,0.00033972,7]
[322144965,1712848282977,-500.0,0.00033972,7]
[322144966,1712848282986,-506.56,0.00033972,7]
[322144967,1712848282996,-500.0,0.00033972,7]
[322144968,1712848283181,-500.0,0.00033972,7]
[322144969,1712848283204,-563.34885947,0.00033972,7]
[322144970,1712848283214,-500.0,0.00033972,7]
[322144971,1712848283224,-500.0,0.00033972,7]
[322144972,1712848283234,-500.0,0.00033972,7]
[322144973,1712848283243,-537.7436364,0.00033972,7]
[322144974,1712848283253,-500.0,0.00033972,7]
[322144975,1712848283262,-1330.84,0.00033972,7]
[322144976,1712848283271,-549.28,0.00033972,7]
[322144977,1712848283281,-686.79,0.00033972,7]
[322144978,1712848283290,-500.0,0.00033972,7]
[322144979,1712848283300,-521.5,0.00033972,7]
[322144980,1712848283309,-500.0,0.00033972,7]
[322144981,1712848283319,-500.0,0.00033972,7]
[322144982,1712848283328,-500.0,0.00033972,7]
[322144983,1712848283338,-500.0,0.00033972,7]
[322144984,1712848283348,-500.0,0.00033972,7]
[322144985,1712848283357,-500.0,0.00033972,7]
[322144986,1712848283366,-500.0,0.00033972,7]
[322144987,1712848283376,-500.0,0.00033972,7]
[322144988,1712848283385,-500.0,0.00033972,7]
[322144989,1712848283394,-500.0,0.00033972,7]
[322144990,1712848283404,-500.0,0.00033972,7]
[322144991,1712848283413,-558.9,0.00033972,7]
[322144992,1712848283422,-500.0,0.00033972,7]
[322144993,1712848283432,-500.0,0.00033972,7]
[322144994,1712848283441,-500.0,0.00033972,7]
[322144995,1712848283451,-500.0,0.00033972,7]
[322144996,1712848283460,-500.0,0.00033972,7]
[322144997,1712848283470,-500.0,0.00033972,7]
[322144998,1712848283480,-500.0,0.00033972,7]
[322144999,1712848283490,-475.20554214,0.00033972,7]
[322145000,1712848283500,-972.77,0.00033972,7]
[322145001,1712848283509,-500.0,0.00033972,7]
[322145002,1712848283519,-500.0,0.00033972,7]
[322145003,1712848283529,-378.93603296,0.00033972,7]
[322145004,1712848283538,-1202.97,0.00033972,7]
[322145005,1712848283548,-500.0,0.00033972,7]
[322145006,1712848283557,-500.0,0.00033972,7]
[322145007,1712848283567,-500.0,0.00033972,7]
[322145008,1712848283576,-500.0,0.00033972,7]
[322145009,1712848283586,-457.05979857,0.00033972,7]
[322145010,1712848283597,-345.41974069,0.00033972,7]
[322145011,1712848283606,-540.67217668,0.00033972,7]
[322145012,1712848283617,-500.0,0.00033972,7]
[322145013,1712848283628,-500.0,0.00033972,7]
[322145014,1712848283637,-500.0,0.00033972,7]
[322145015,1712848283646,-500.0,0.00033972,7]
[322145016,1712848283656,-500.0,0.00033972,7]
[322145017,1712848283667,-500.0,0.00033972,7]
[322145018,1712848283677,-500.0,0.00033972,7]
[322145019,1712848283687,-500.0,0.00033972,7]
[322145020,1712848283696,-500.0,0.00033972,2]
[322145021,1712848283706,-500.0,0.00033972,7]
[322145022,1712848283715,-500.0,0.00033972,7]
[322145023,1712848283724,-504.68,0.00033972,7]
[322145024,1712848283733,-500.0,0.00033972,7]
[322145025,1712848283743,-500.0,0.00033972,7]
[322145026,1712848283752,-500.0,0.00033972,7]
[322145027,1712848283762,-500.0,0.00033972,7]
[322145028,1712848283771,-559.1,0.00033972,7]
[322145029,1712848283781,-430.1475637,0.00033972,7]
[322145030,1712848283790,-540.18356808,0.00033972,7]
[322145031,1712848283799,-1060.44,0.00033972,7]
[322145032,1712848283809,-500.0,0.00033972,7]
[322145033,1712848283818,-511.72663001,0.00033972,7]
[322145034,1712848283828,-500.0,0.00033972,7]
[322145035,1712848283838,-532.45,0.00033972,7]
[322145036,1712848283848,-791.16,0.00033972,7]
[322145037,1712848283857,-508.89238929,0.00033972,7]
[322145038,1712848283867,-500.0,0.00033972,7]
[322145039,1712848283877,-500.0,0.00033972,7]
[322145040,1712848283887,-500.0,0.00033972,7]
[322145041,1712848283897,-500.0,0.00033972,7]
[322145042,1712848283906,-500.0,0.00033972,7]
[322145043,1712848283916,-734.4,0.00033972,7]
[322145044,1712848283927,-516.73920095,0.00033972,7]
[322145045,1712848283939,-500.0,0.00033972,7]
[322145046,1712848283948,-500.0,0.00033972,7]
[322145047,1712848283958,-2315.11,0.00033972,7]
[322145048,1712848283967,-500.0,0.00033972,7]
[322145049,1712848283977,-500.0,0.00033972,7]
[322145050,1712848283986,-703.08,0.00033972,7]
[322145051,1712848283996,-500.0,0.00033972,7]
[322145052,1712848284005,-306.80186623,0.00033972,7]
[322145053,1712848284015,-500.0,0.00033972,7]
[322145054,1712848284024,-500.0,0.00033972,7]
[322145055,1712848284033,-2605.27,0.00033972,7]
[322145056,1712848284043,-500.0,0.00033972,7]
[322145057,1712848284053,-500.0,0.00033972,7]
[322145058,1712848284062,-500.0,0.00033972,7]
[322145059,1712848284072,-502.81181926,0.00033972,7]
[322145060,1712848284082,-1828.28,0.00033972,7]
[322145061,1712848284092,-500.0,0.00033972,7]
[322145062,1712848284103,-500.0,0.00033972,7]
[322145063,1712848284113,-500.0,0.00033972,7]
[322145064,1712848284122,-500.0,0.00033972,7]
[322145065,1712848284132,-717.24,0.00033972,7]
[322145066,1712848284142,-1989.74,0.00033972,7]
[322145067,1712848284151,-837.25,0.00033972,7]
[322145068,1712848284161,-500.0,0.00033972,7]
[322145069,1712848284171,-500.0,0.00033972,7]
[322145070,1712848284182,-500.0,0.00033972,7]
[322145071,1712848284192,-534.76585203,0.00033972,7]
[322145072,1712848284204,-500.0,0.00033972,7]
[322145073,1712848284215,-500.0,0.00033972,7]
[322145074,1712848284225,-2399.37,0.00033972,7]
[322145075,1712848284234,-500.0,0.00033972,2]
[322145076,1712848284244,-500.0,0.00033972,7]
[322145077,1712848284254,-500.0,0.00033972,7]
[322145078,1712848284263,-500.0,0.00033972,7]
[322145079,1712848284273,-500.0,0.00033972,7]
[322145080,1712848284282,-503.55,0.00033972,7]
[322145081,1712848284292,-2174.72,0.00033972,7]
[322145082,1712848284302,-545.27,0.00033972,7]
[322145083,1712848284312,-757.56,0.00033972,7]
[322145084,1712848284321,-168.47273324,0.00033972,7]
[322145085,1712848284330,-500.0,0.00033972,7]
[322145086,1712848284340,-500.0,0.00033972,7]
[322145087,1712848284350,-500.0,0.00033972,7]
[322145088,1712848284359,-500.0,0.00033972,7]
[322145089,1712848284369,-500.0,0.00033972,7]
[322145090,1712848284378,-500.0,0.00033972,7]
[322145091,1712848284387,-500.0,0.00033972,7]
[322145092,1712848284397,-767.78,0.00033972,7]
[322145093,1712848284406,-500.0,0.00033972,7]
[322145094,1712848284415,-884.34,0.00033972,7]
[322145095,1712848284424,-500.0,0.00033972,7]
[322145096,1712848284433,-500.0,0.00033972,7]
[322145097,1712848284443,-500.0,0.00033972,7]
[322145098,1712848284452,-500.0,0.00033972,7]
[322145099,1712848284461,-505.11380166,0.00033972,7]
[322145100,1712848284470,-500.0,0.00033972,7]
[322145101,1712848284480,-500.0,0.00033972,7]
[322145102,1712848284489,-737.12,0.00033972,7]
[322145103,1712848284499,-546.96592336,0.00033972,7]
[322145104,1712848284508,-519.36996227,0.00033972,7]
[322145105,1712848284517,-500.0,0.00033972,7]
[322145106,1712848284527,-587.27717501,0.00033972,7]
[322145107,1712848284536,-532.3,0.00033972,7]
[322145108,1712848284545,-552.81,0.00033972,7]
[322145109,1712848284555,-503.22,0.00033972,7]
[322145110,1712848284565,-705.79,0.00033972,7]
[322145111,1712848284574,-500.0,0.00033972,7]
[322145112,1712848284583,-1110.54,0.00033972,7]
[322145113,1712848284593,-725.79,0.00033972,7]
[322145114,1712848284602,-1069.0,0.00033972,7]
[322145115,1712848284611,-244.21690722,0.00033972,7]
[322145116,1712848284620,-500.0,0.00033972,7]
[322145117,1712848284630,-500.0,0.00033972,7]
[322145118,1712848284639,-500.0,0.00033972,7]
[322145119,1712848284648,-520.9,0.00033972,7]
[322145120,1712848284659,-849.1,0.00033972,7]
[322145121,1712848284669,-500.0,0.00033972,7]
[322145122,1712848284679,-500.0,0.00033972,7]
[322145123,1712848284688,-543.11583948,0.00033972,7]
[322145124,1712848284698,-500.0,0.00033972,7]
[322145125,1712848284707,-310.83412663,0.00033972,7]
[322145126,1712848284717,-1492.6,0.00033972,7]
[322145127,1712848284726,-602.16,0.00033972,7]
[322145128,1712848284736,-500.0,0.00033972,7]
[322145129,1712848284746,-894.02,0.00033972,7]
[322145130,1712848284755,-500.0,0.00033972,7]
[322145131,1712848284765,-992.19,0.00033972,7]
[322145132,1712848284774,-500.0,0.00033972,7]
[322145133,1712848284783,-500.0,0.00033972,7]
[322145134,1712848284793,-1800.11,0.00033972,7]
[322145135,1712848284802,-500.0,0.00033972,7]
[322145136,1712848284812,-500.0,0.00033972,7]
[322145137,1712848284821,-500.0,0.00033972,7]
[322145138,1712848284831,-500.0,0.00033972,7]
[322145139,1712848284840,-500.0,0.00033972,7]
[322145140,1712848284850,-500.0,0.00033972,7]
[322145141,1712848284859,-500.0,0.00033972,7]
[322145142,1712848284868,-500.0,0.00033972,7]
[322145143,1712848284877,-500.0,0.00033972,7]
[322145144,1712848284887,-1644.53,0.00033972,7]
[322145145,1712848284897,-1982.54,0.00033972,7]
[322145146,1712848284906,-770.82,0.00033972,7]
[322145147,1712848284916,-500.0,0.00033972,7]
[322145148,1712848284926,-500.0,0.00033972,7]
[322145149,1712848284937,-500.0,0.00033972,7]
[322145150,1712848284947,-500.0,0.00033972,7]
[322145151,1712848284957,-396.54702013,0.00033972,7]
[322145152,1712848284967,-632.16178175,0.00033972,7]
[322145153,1712848284977,-730.14,0.00033972,7]
[322145154,1712848284987,-771.46,0.00033972,7]
[322145155,1712848284996,-262.57741677,0.00033972,7]
[322145156,1712848285006,-558.46579069,0.00033972,7]
[322145157,1712848285016,-500.0,0.00033972,7]
[322145158,1712848285025,-629.41,0.00033972,7]
[322145159,1712848285035,-812.45,0.00033972,7]
[322145160,1712848285045,-1907.74,0.00033972,7]
[322145161,1712848285054,-1296.49,0.00033972,7]
[322145162,1712848285064,-500.0,0.00033972,7]
[322145163,1712848285073,-500.0,0.00033972,7]
[322145164,1712848285083,-500.0,0.00033972,7]
[322145165,1712848285093,-1200.24,0.00033972,7]
[322145166,1712848285104,-500.0,0.00033972,7]
[322145167,1712848285115,-500.0,0.00033972,7]
[322145168,1712848285128,-500.0,0.00033972,7]
[322145169,1712848285139,-794.96,0.00033972,7]
[322145170,1712848285149,-500.0,0.00033972,7]
[322145171,1712848285160,-1968.95,0.00033972,7]
[322145172,1712848285170,-907.94,0.00033972,7]
[322145173,1712848285179,-500.0,0.00033972,7]
[322145174,1712848285189,-500.0,0.00033972,7]
[322145175,1712848285198,-1276.27,0.00033972,7]
[322145176,1712848285208,-723.03,0.00033972,7]
[322145177,1712848285217,-1359.16,0.00033972,7]
[322145178,1712848285227,-500.0,0.00033972,7]
[322145179,1712848285236,-763.05,0.00033972,7]
[322145180,1712848285245,-997.44,0.00033972,7]
[322145181,1712848285255,-500.0,0.00033972,7]
[322145182,1712848285264,-500.0,0.00033972,7]
[322145183,1712848285273,-888.5,0.00033972,7]
[322145184,1712848285283,-1742.28,0.00033972,7]
[322145185,1712848285293,-500.0,0.00033972,7]
[322145186,1712848285302,-543.04298906,0.00033972,7]
[322145187,1712848285311,-500.0,0.00033972,7]
[322145188,1712848285320,-568.9418856,0.00033972,7]
[322145189,1712848285329,-500.0,0.00033972,7]
[322145190,1712848285338,-500.0,0.00033972,7]
[322145191,1712848285348,-500.0,0.00033972,7]
[322145192,1712848285357,-500.0,0.00033972,7]
[322145193,1712848285366,-500.0,0.00033972,7]
[322145194,1712848285376,-500.0,0.00033972,7]
[322145195,1712848285385,-913.39,0.00033972,7]
[322145196,1712848285395,-1623.26,0.00033972,7]
[322145197,1712848285404,-163.63510151,0.00033972,7]
[322145198,1712848285414,-500.0,0.00033972,7]
[322145199,1712848285424,-500.0,0.00033972,7]
[322145200,1712848285433,-500.0,0.00033972,7]
[322145201,1712848285442,-500.0,0.00033972,7]
[322145202,1712848285452,-1960.97,0.00033972,7]
[322145203,1712848285461,-500.0,0.00033972,7]
[322145204,1712848285470,-584.31566412,0.00033972,7]
[322145205,1712848285480,-961.6,0.00033972,7]
[322145206,1712848285489,-864.92,0.00033972,7]
[322145207,1712848285499,-500.0,0.00033972,7]
[322145208,1712848285509,-500.0,0.00033972,7]
[322145209,1712848285518,-500.0,0.00033972,7]
[322145210,1712848285528,-506.6,0.00033972,7]
[322145211,1712848285537,-636.97,0.00033972,7]
[322145212,1712848285547,-754.77,0.00033972,7]
[322145213,1712848285557,-500.0,0.00033972,7]
[322145214,1712848285634,-598.9,0.00033972,7]
[322145215,1712848285643,-500.0,0.00033972,7]
[322145216,1712848285652,-500.0,0.00033972,7]
[322145217,1712848285664,-500.0,0.00033972,7]
[322145218,1712848285673,-500.0,0.00033972,7]
[322145219,1712848285682,-589.99,0.00033972,7]
[322145220,1712848285691,-898.19,0.00033972,7]
[322145221,1712848285700,-500.0,0.00033972,7]
[322145222,1712848285709,-500.0,0.00033972,7]
[322145223,1712848285718,-500.0,0.00033972,7]
[322145224,1712848285727,-500.0,0.00033972,7]
[322145225,1712848285736,-2231.31,0.00033972,7]
[322145226,1712848285745,-500.0,0.00033972,7]
[322145227,1712848285754,-596.69,0.00033972,7]
[322145228,1712848285763,-559.69,0.00033972,7]
[322145229,1712848285772,-871.98,0.00033972,7]
[322145230,1712848285782,-500.0,0.00033972,7]
[322145231,1712848285791,-500.0,0.00033972,7]
[322145232,1712848285801,-500.0,0.00033972,7]
[322145233,1712848285811,-500.0,0.00033972,7]
[322145234,1712848285821,-500.0,0.00033972,7]
[322145235,1712848285831,-1175.56,0.00033972,7]
[322145236,1712848285843,-500.0,0.00033972,7]
[322145237,1712848285853,-665.12,0.00033972,7]
[322145238,1712848285862,-220.346262,0.00033972,7]
[322145239,1712848285871,-500.0,0.00033972,7]
[322145240,1712848285881,-500.0,0.00033972,7]
[322145241,1712848285892,-1773.63,0.00033972,7]
[322145242,1712848285902,-500.0,0.00033972,7]
[322145243,1712848285912,-2326.98,0.00033972,7]
[322145244,1712848285921,-500.0,0.00033972,7]
[322145245,1712848285930,-562.06,0.00033972,7]
[322145246,1712848285940,-2420.19,0.00033972,7]
[322145247,1712848285949,-470.82096211,0.00033972,7]
[322145248,1712848285958,-887.79,0.00033972,7]
[322145249,1712848285968,-500.0,0.00033972,7]
[322145250,1712848285977,-646.88692073,0.00033972,7]
[322145251,1712848285987,-500.0,0.00033972,7]
[322145252,1712848285997,-591.37,0.00033972,7]
[322145253,1712848286007,-716.07,0.00033972,7]
[322145254,1712848286017,-500.0,0.00033972,7]
[322145255,1712848286027,-230.15087193,0.00033972,7]
[322145256,1712848286036,-500.0,0.00033972,7]
[322145257,1712848286046,-860.76,0.00033972,7]
[322145258,1712848286055,-2202.21,0.00033972,7]
[322145259,1712848286064,-500.0,0.00033972,7]
[322145260,1712848286073,-871.11,0.00033972,7]
[322145261,1712848286082,-2782.37,0.00033972,7]
[322145262,1712848286092,-626.87,0.00033972,7]
[322145263,1712848286101,-500.0,0.00033972,7]
[322145264,1712848286110,-1281.72,0.00033972,7]
[322145265,1712848286122,-500.0,0.00033972,7]
[322145266,1712848286133,-500.0,0.00033972,7]
[322145267,1712848286143,-500.0,0.00033972,7]
[322145268,1712848286152,-515.74,0.00033972,7]
[322145269,1712848286162,-839.01,0.00033972,7]
[322145270,1712848286171,-637.35,0.00033972,7]
[322145271,1712848286181,-500.0,0.00033972,7]
[322145272,1712848286191,-500.0,0.00033972,7]
[322145273,1712848286201,-500.0,0.00033972,7]
[322145274,1712848286210,-1362.78,0.00033972,7]
[322145275,1712848286220,-500.0,0.00033972,7]
[322145276,1712848286229,-1433.0,0.00033972,7]
[322145277,1712848286239,-1982.85,0.00033972,7]
[322145278,1712848286248,-766.41,0.00033972,7]
[322145279,1712848286257,-500.0,0.00033972,7]
[322145280,1712848286266,-1081.67,0.00033972,7]
[322145281,1712848286275,-500.0,0.00033972,7]
[322145282,1712848286284,-500.0,0.00033972,7]
[322145283,1712848286293,-500.0,0.00033972,7]
[322145284,1712848286302,-500.0,0.00033972,7]
[322145285,1712848286311,-500.0,0.00033972,7]
[322145286,1712848286320,-500.0,0.00033972,7]
[322145287,1712848286330,-500.0,0.00033972,7]
[322145288,1712848286339,-1310.73,0.00033972,7]
[322145289,1712848286349,-500.0,0.00033972,7]
[322145290,1712848286359,-1292.1,0.00033972,7]
[322145291,1712848286368,-272.04241004,0.00033972,7]
[322145292,1712848286377,-500.0,0.00033972,7]
[322145293,1712848286387,-2160.37,0.00033972,7]
[322145294,1712848286396,-1704.4,0.00033972,7]
[322145295,1712848286405,-500.0,0.00033972,7]
[322145296,1712848286415,-500.0,0.00033972,7]
[322145297,1712848286424,-500.0,0.00033972,7]
[322145298,1712848286437,-500.0,0.00033972,7]
[322145299,1712848286447,-500.0,0.00033972,7]
[322145300,1712848286457,-500.0,0.00033972,7]
[322145301,1712848286466,-577.15,0.00033972,7]
[322145302,1712848286475,-500.0,0.00033972,7]
[322145303,1712848286485,-500.0,0.00033972,7]
[322145304,1712848286494,-2652.79,0.00033972,7]
[322145305,1712848286505,-777.8,0.00033972,7]
[322145306,1712848286515,-500.0,0.00033972,7]
[322145307,1712848286526,-500.0,0.00033972,7]
[322145308,1712848286536,-500.0,0.00033972,7]
[322145309,1712848286548,-1282.63,0.00033972,7]
[322145310,1712848286559,-713.37,0.00033972,7]
[322145311,1712848286570,-500.0,0.00033972,7]
[322145312,1712848286582,-1695.93,0.00033972,7]
[322145313,1712848286592,-178.04067265,0.00033972,7]
[322145314,1712848286602,-500.0,0.00033972,7]
[322145315,1712848286612,-1561.31,0.00033972,7]
[322145316,1712848286623,-500.0,0.00033972,7]
[322145317,1712848286634,-500.0,0.00033972,7]
[322145318,1712848286646,-987.81,0.00033972,7]
[322145319,1712848286659,-1293.75,0.00033972,7]
[322145320,1712848286671,-500.0,0.00033972,7]
[322145321,1712848286681,-537.34,0.00033972,7]
[322145322,1712848286691,-863.29,0.00033972,7]
[322145323,1712848286701,-500.0,0.00033972,7]
[322145324,1712848286714,-500.0,0.00033972,7]
[322145325,1712848286724,-752.52,0.00033972,7]
[322145326,1712848286734,-500.0,0.00033972,7]
[322145327,1712848286744,-522.34,0.00033972,7]
[322145328,1712848286754,-574.60919311,0.00033972,7]
[322145329,1712848286765,-500.0,0.00033972,7]
[322145330,1712848286775,-500.0,0.00033972,7]
[322145331,1712848286785,-1037.3,0.00033972,7]
[322145332,1712848286795,-500.0,0.00033972,7]
[322145333,1712848286806,-500.0,0.00033972,7]
[322145334,1712848286816,-1728.44,0.00033972,7]
[322145335,1712848286828,-500.0,0.00033972,7]
[322145336,1712848286838,-500.0,0.00033972,7]
[322145337,1712848286850,-500.0,0.00033972,7]
[322145338,1712848286861,-500.0,0.00033972,7]
[322145339,1712848286873,-500.0,0.00033972,7]
[322145340,1712848286884,-833.49,0.00033972,7]
[322145341,1712848286895,-500.0,0.00033972,7]
[322145342,1712848286905,-500.0,0.00033972,7]
[322145343,1712848286915,-500.0,0.00033972,7]
[322145344,1712848286926,-958.46,0.00033972,7]
[322145345,1712848286936,-500.0,0.00033972,7]
[322145346,1712848286947,-766.42,0.00033972,7]
[322145347,1712848286958,-500.0,0.00033972,7]
[322145348,1712848286968,-500.0,0.00033972,2]
[322145349,1712848286978,-500.0,0.00033972,7]
[322145350,1712848286988,-1020.19,0.00033972,7]
[322145351,1712848286999,-500.0,0.00033972,7]
[322145352,1712848287009,-1739.49,0.00033972,7]
[322145353,1712848287020,-833.84,0.00033972,7]
[322145354,1712848287033,-1489.05,0.00033972,7]
[322145355,1712848287042,-500.0,0.00033972,7]
[322145356,1712848287052,-1243.12,0.00033972,7]
[322145357,1712848287062,-1429.59,0.00033972,7]
[322145358,1712848287072,-552.45,0.00033972,7]
[322145359,1712848287083,-500.0,0.00033972,7]
[322145360,1712848287093,-500.0,0.00033972,7]
[322145361,1712848287104,-500.0,0.00033972,7]
[322145362,1712848287115,-2073.27,0.00033972,7]
[322145363,1712848287127,-500.0,0.00033972,2]
[322145364,1712848287137,-500.0,0.00033972,7]
[322145365,1712848287148,-500.0,0.00033972,7]
[322145366,1712848287158,-500.0,0.00033972,7]
[322145367,1712848287168,-500.0,0.00033972,7]
[322145368,1712848287179,-500.0,0.00033972,7]
[322145369,1712848287190,-500.0,0.00033972,7]
[322145370,1712848287203,-500.0,0.00033972,7]
[322145371,1712848287213,-500.0,0.00033972,7]
[322145372,1712848287223,-500.0,0.00033972,7]
[322145373,1712848287233,-685.79,0.00033972,7]
[322145374,1712848287243,-500.0,0.00033972,7]
[322145375,1712848287253,-500.0,0.00033972,7]
[322145376,1712848287264,-500.0,0.00033972,7]
[322145377,1712848287274,-500.0,0.00033972,7]
[322145378,1712848287284,-1371.22,0.00033972,7]
[322145379,1712848287296,-519.36,0.00033972,7]
[322145380,1712848287307,-309.14617272,0.00033972,7]
[322145381,1712848287317,-500.0,0.00033972,7]
[322145382,1712848287327,-500.0,0.00033972,7]
[322145383,1712848287338,-500.0,0.00033972,7]
[322145384,1712848287347,-500.0,0.00033972,7]
[322145385,1712848287358,-500.0,0.00033972,7]
[322145386,1712848287368,-1874.73,0.00033972,7]
[322145387,1712848287378,-2030.41,0.00033972,7]
[322145388,1712848287388,-729.46,0.00033972,7]
[322145389,1712848287398,-500.0,0.00033972,7]
[322145390,1712848287408,-635.6780219,0.00033972,7]
[322145391,1712848287418,-1179.75,0.00033972,7]
[322145392,1712848287429,-1181.95,0.00033972,7]
[322145393,1712848287438,-701.24,0.00033972,7]
[322145394,1712848287448,-500.0,0.00033972,7]
[322145395,1712848287458,-590.06,0.00033972,7]
[322145396,1712848287469,-2614.47,0.00033972,7]
[322145397,1712848287478,-500.0,0.00033972,7]
[322145398,1712848287488,-1389.74,0.00033972,7]
[322145399,1712848287498,-608.35,0.00033972,7]
[322145400,1712848287514,-500.0,0.00033972,7]
[322145401,1712848287525,-615.33,0.00033972,7]
[322145402,1712848287538,-500.0,0.00033972,7]
[322145403,1712848287548,-500.0,0.00033972,7]
[322145404,1712848287576,-556.63,0.00033972,7]
[322145405,1712848287611,-507.9386942,0.00033972,7]
[322145406,1712848287622,-500.0,0.00033972,7]
[322145407,1712848287633,-563.17098204,0.00033972,7]
[322145408,1712848287645,-500.0,0.00033972,7]
[322145409,1712848287657,-500.0,0.00033972,7]
[322145410,1712848287668,-1658.79,0.00033972,7]